bitfinex-derivatives/quotes_ETHF0:USTF0_20210703
["timestamp","ask_amount","ask_price","bid_price","bid_amount"]
[1625336143433,8.16554,2215.4,2215.3,2.20527]
[1625336144185,7.16554,2215.4,2215.3,2.20527]
[1625336146642,8.16554,2215.4,2215.3,2.20527]
[1625336154070,7.16554,2215.4,2215.3,2.20527]
[1625336154270,1.0,2216.7,2215.3,2.20527]
[1625336155573,2.20527,2215.4,2215.3,2.20527]
[1625336155823,1.0,2216.7,2215.3,2.20527]
[1625336157543,2.20527,2216.5,2216.4,2.20527]
[1625336157639,3.20527,2216.5,2216.4,5.74057]
[1625336159548,5.41054,2216.5,2216.4,5.74057]
[1625336159848,5.41054,2216.5,2216.4,3.5353]
[1625336159951,5.41054,2216.5,2215.6,4.759]
[1625336160050,5.41054,2216.5,2215.7,0.19409149]
[1625336160551,5.41054,2216.5,2215.8,16.417607]
[1625336161052,5.41054,2216.5,2215.7,16.450011]
[1625336161554,3.20527,2216.5,2216.1,2.20527]
[1625336163606,2.20527,2216.2,2216.1,2.20527]
[1625336165509,1.0,2217.2,2216.1,2.20527]
[1625336165609,2.20527,2216.4,2216.1,2.20527]
[1625336165813,3.20527,2216.7,2216.1,2.20527]
[1625336166013,3.20527,2216.7,2216.1,5.87907]
[1625336166163,3.20527,2216.7,2216.2,16.475813]
[1625336166316,2.20527,2216.7,2216.2,16.475813]
[1625336166515,2.20527,2216.7,2216.2,17.366013]
[1625336166615,2.20527,2216.7,2216.2,16.475813]
[1625336167116,14.6776,2217.8,2216.2,16.475813]
[1625336167415,1.0,2217.7,2216.2,16.475813]
[1625336167615,2.20527,2217.0,2216.9,2.20527]
[1625336167716,2.20527,2217.0,2216.9,5.14427]
[1625336169372,3.20527,2217.0,2216.9,5.14427]
[1625336169472,3.20527,2217.0,2216.9,2.939]
[1625336169576,3.20527,2217.0,2216.1,3.6738]
[1625336169725,3.20527,2217.0,2216.4,2.20527]
[1625336170224,3.20527,2217.0,2216.5,16.506188]
[1625336170372,2.20527,2217.0,2216.5,16.506188]
[1625336171630,2.20527,2217.0,2216.9,2.20527]
[1625336173338,3.20527,2217.0,2216.9,2.20527]
[1625336174193,2.52377338,2217.0,2216.9,2.20527]
[1625336178106,4.88527338,2217.0,2216.9,2.20527]
[1625336183217,2.52377338,2217.0,2216.9,2.20527]
[1625336185681,2.52377338,2217.0,2216.4,2.20527]
[1625336185884,2.20527,2216.6,2216.4,2.20527]
[1625336187180,2.20527,2216.6,2216.2,2.20527]
[1625336187885,2.20527,2216.3,2216.2,2.20527]
[1625336190788,3.20527,2216.3,2216.2,2.20527]
[1625336191238,3.20527,2216.3,2215.7,15.3359]
[1625336191537,3.20527,2216.3,2215.8,0.13367239]
[1625336191889,2.20527,2215.9,2215.7,2.20527]
[1625336191993,3.20527,2215.9,2215.7,2.20527]
[1625336192095,2.20527,2215.9,2215.7,2.20527]
[1625336193447,3.20527,2215.9,2215.7,2.20527]
[1625336193651,2.20527,2215.9,2215.7,2.20527]
[1625336193952,4.41054,2215.9,2215.7,2.20527]
[1625336195203,1.0,2216.3,2215.7,2.20527]
[1625336195911,3.20527,2216.3,2216.0,2.20527]
[1625336199115,2.20527,2216.3,2216.0,2.20527]
[1625336199619,2.20527,2216.3,2216.1,16.392921]
[1625336199918,2.20527,2216.3,2216.1,18.598191]
[1625336200017,1.80664239,2217.7,2216.1,18.598191]
[1625336200219,1.0,2217.6,2216.1,18.598191]
[1625336201325,1.0,2217.6,2216.2,0.13365268]
[1625336201574,1.0,2217.6,2216.3,16.367005]
[1625336201928,2.20527,2217.0,2216.9,2.20527]
[1625336203930,4.41054,2217.0,2216.9,2.20527]
[1625336204032,1.0,2217.6,2216.9,2.20527]
[1625336205339,1.0,2217.5,2216.9,2.20527]
[1625336205443,3.676,2217.5,2216.9,2.20527]
[1625336205993,3.676,2217.5,2216.6,2.20527]
[1625336205994,4.41054,2217.0,2216.6,2.20527]
[1625336206093,1.0,2216.9,2216.6,2.20527]
[1625336207953,2.20527,2216.7,2216.6,2.20527]
[1625336208605,3.20527,2216.7,2216.6,2.20527]
[1625336222183,2.20527,2216.7,2216.6,2.20527]
[1625336225745,2.20527,2216.7,2216.1,1.33015694]
[1625336225852,2.20527,2216.7,2216.2,0.19476772]
[1625336226142,2.20527,2216.7,2216.2,0.32842392]
[1625336226242,2.20527,2216.7,2216.3,2.40004172]
[1625336226393,2.20527,2216.7,2216.3,18.6617]
[1625336226649,2.20527,2216.7,2216.3,2.20527]
[1625336226752,1.0,2216.6,2216.3,2.20527]
[1625336226854,3.4402,2216.6,2216.3,2.20527]
[1625336228264,2.20527,2216.4,2216.1,2.20527]
[1625336228361,1.0,2216.3,2216.1,2.20527]
[1625336228862,1.0,2216.3,2215.8,2.20527]
[1625336228963,1.0,2216.3,2215.6,1.33062074]
[1625336229064,1.0,2216.3,2215.5,1.33062822]
[1625336229268,1.0,2216.3,2215.6,0.19480987]
[1625336229620,1.0,2216.3,2215.7,0.13368826]
[1625336230222,1.0,2216.3,2215.6,0.13369171]
[1625336230322,4.41054,2215.8,2215.6,0.13369171]
[1625336230424,8.13964,2215.8,2215.6,0.13369171]
[1625336232278,8.13964,2215.8,2215.7,2.20527]
[1625336232576,7.13964,2215.8,2215.7,2.20527]
[1625336232930,4.93437,2215.8,2215.7,2.3389606]
[1625336233628,4.93437,2215.8,2215.7,0.1336906]
[1625336234080,4.93437,2215.8,2215.6,0.13369014]
[1625336236285,5.93437,2215.8,2215.6,0.13369014]
[1625336236488,5.93437,2215.8,2215.6,2.33896014]
[1625336237090,5.93437,2215.8,2215.7,0.1336908]
[1625336238005,4.93437,2215.8,2215.7,0.1336908]
[1625336238156,2.20527,2215.8,2215.7,0.1336908]
[1625336240613,3.20527,2215.8,2215.7,0.1336908]
[1625336242815,2.20527,2215.8,2215.7,0.1336908]
[1625336243216,3.20527,2215.8,2215.7,0.1336908]
[1625336245421,2.20527,2215.8,2215.7,0.1336908]
[1625336245621,3.20527,2215.8,2215.7,0.1336908]
[1625336248082,3.20527,2215.8,2215.6,0.13369132]
[1625336248781,3.20527,2215.8,2215.6,1.46605266]
[1625336249180,3.20527,2215.8,2215.7,0.13369021]
[1625336255210,3.20527,2215.8,2215.3,4.41054]
[1625336255311,5.77227,2215.8,2215.3,4.41054]
[1625336255415,5.77227,2215.8,2215.2,1.33230238]
[1625336255614,5.77227,2215.8,2215.4,0.13370917]
[1625336255917,5.77227,2215.8,2215.3,0.1337057]
[1625336256016,5.77227,2215.8,2215.3,1.46571131]
[1625336256767,5.77227,2215.8,2215.5,2.20527]
[1625336257117,5.77227,2215.8,2215.6,0.13369891]
[1625336258722,2.20527,2215.7,2215.6,0.13369891]
[1625336259873,5.20787,2215.7,2215.6,0.13369891]
[1625336261577,5.20787,2215.7,2215.5,0.13370299]
[1625336262278,5.20787,2215.7,2215.4,0.13370815]
[1625336262431,6.20787,2215.7,2215.4,0.13370815]
[1625336262729,2.20527,2215.5,2215.4,0.13370815]
[1625336263683,3.20527,2215.7,2215.4,0.13370815]
[1625336263935,3.20527,2215.7,2215.4,1.46551797]
[1625336264332,3.20527,2215.7,2215.5,0.13369674]
[1625336264809,2.20527,2215.7,2215.5,0.13369674]
[1625336265011,2.20527,2215.7,2215.5,3.39199674]
[1625336265215,2.20527,2215.8,2215.5,3.39199674]
[1625336265316,2.20527,2215.8,2215.5,4.72384858]
[1625336265420,2.20527,2215.8,2215.6,0.13369048]
[1625336265619,2.20527,2215.8,2215.6,16.39492648]
[1625336265769,2.20527,2215.8,2215.6,17.72669561]
[1625336265869,2.20527,2215.8,2215.6,18.39512593]
[1625336266020,1.0,2216.6,2215.7,0.19454602]
[1625336266223,1.0,2216.6,2215.7,2.86098019]
[1625336266324,1.0,2216.6,2215.8,16.517232]
[1625336266624,1.0,2216.6,2215.9,0.13367716]
[1625336266720,2.20527,2216.3,2216.2,2.20527]
[1625336266820,2.20527,2216.3,2216.2,5.92157]
[1625336268724,4.41054,2216.3,2216.2,5.92157]
[1625336270630,4.41054,2216.3,2216.2,3.7163]
[1625336270882,5.41054,2216.3,2216.2,3.7163]
[1625336272435,5.41054,2216.3,2215.9,2.20527]
[1625336272786,2.20527,2216.0,2215.9,2.20527]
[1625336273438,2.20527,2216.0,2215.9,2.33896153]
[1625336274939,3.20527,2216.0,2215.9,2.33896153]
[1625336275139,5.76767,2216.0,2215.9,2.33896153]
[1625336275292,5.76767,2216.0,2215.9,2.20527]
[1625336275490,5.76767,2216.0,2215.5,1.33215203]
[1625336275591,5.76767,2216.0,2215.3,1.33217644]
[1625336276041,5.76767,2216.0,2215.4,0.13370859]
[1625336276843,2.20527,2215.5,2215.3,0.13371066]
[1625336276944,3.20527,2215.5,2215.3,0.13371066]
[1625336278798,5.41054,2215.5,2215.3,0.13371066]
[1625336279200,4.41054,2215.5,2215.3,0.13371066]
[1625336279449,5.41054,2215.5,2215.3,0.13371066]
[1625336282622,7.75704,2215.5,2215.0,2.20527]
[1625336282722,7.75704,2215.5,2214.9,2.66400054]
[1625336282822,7.75704,2215.5,2214.7,2.66414867]
[1625336282927,4.41054,2214.8,2214.7,2.66414867]
[1625336283026,7.89494,2214.8,2214.7,0.66354867]
[1625336283527,7.89494,2214.8,2213.7,3.4640861]
[1625336283826,7.89494,2214.8,2213.8,0.19489393]
[1625336283928,7.89494,2214.8,2213.8,0.86373417]
[1625336284026,7.89494,2214.8,2213.8,0.66884024]
[1625336284231,7.89494,2214.8,2213.9,0.19457692]
[1625336284730,7.89494,2214.8,2214.0,16.3004]
[1625336284953,2.20527,2214.3,2214.2,2.20527]
[1625336285031,3.20527,2214.3,2214.2,2.20527]
[1625336285940,3.20527,2214.3,2214.2,18.524976]
[1625336287441,3.20527,2214.3,2214.2,16.319706]
[1625336287542,6.57457,2214.3,2214.0,2.20527]
[1625336288895,2.20527,2214.1,2213.7,2.20527]
[1625336288993,1.0,2214.0,2213.7,2.20527]
[1625336290945,2.20527,2213.8,2213.7,2.20527]
[1625336291295,3.20527,2213.8,2213.7,2.20527]
[1625336293749,3.20527,2213.8,2213.7,18.482854]
[1625336294453,3.20527,2213.8,2213.7,2.20527]
[1625336294902,3.20527,2213.8,2213.7,18.487528]
[1625336299977,2.20527,2214.1,2213.7,18.487528]
[1625336300077,2.20527,2214.1,2213.8,1.0]
[1625336300429,2.20527,2214.1,2213.9,16.325449]
[1625336300528,2.20527,2214.1,2213.9,17.325449]
[1625336301080,4.41054,2214.1,2214.0,2.20527]
[1625336301382,4.41054,2214.1,2214.0,18.526194]
[1625336301531,4.41054,2214.1,2214.0,21.918094]
[1625336305488,4.41054,2214.1,2214.0,2.20527]
[1625336306089,4.41054,2214.1,2213.0,14.5563]
[1625336306339,4.41054,2214.1,2213.3,1.0]
[1625336306540,4.41054,2214.1,2213.0,14.5563]
[1625336307089,2.20527,2213.5,2213.4,2.20527]
[1625336308051,2.20527,2213.5,2213.4,3.20527]
[1625336309102,2.20527,2213.5,2213.4,19.741282]
[1625336309254,2.20527,2213.8,2213.4,19.93470081]
[1625336309354,15.5155,2215.6,2213.4,19.741282]
[1625336309503,15.5155,2215.6,2213.4,22.243982]
[1625336310232,15.5155,2215.6,2213.4,23.142882]
[1625336310383,20.5155,2215.6,2213.4,23.142882]
[1625336310480,15.5155,2215.6,2213.4,23.142882]
[1625336310831,20.5155,2215.6,2213.4,23.142882]
[1625336311083,2.20527,2214.2,2214.1,2.20527]
[1625336313091,4.41054,2214.2,2214.1,2.20527]
[1625336313292,2.20527,2214.2,2214.1,2.20527]
[1625336315397,2.20527,2214.2,2213.5,1.0]
[1625336315496,7.20527,2214.2,2212.2,1.32536766]
[1625336315598,7.20527,2214.2,2211.2,17.5909827]
[1625336315599,7.20527,2214.2,2212.0,6.19642582]
[1625336315748,7.20527,2214.2,2212.0,5.30202582]
[1625336315849,2.20527,2214.2,2212.0,5.30202582]
[1625336316050,2.20527,2214.2,2211.6,3.44758738]
[1625336316301,2.20527,2214.2,2211.7,0.19343668]
[1625336316450,2.20527,2214.2,2211.7,1.32728439]
[1625336316651,2.20527,2214.2,2211.7,17.64626239]
[1625336316752,2.20527,2214.2,2211.8,0.3272927]
[1625336316900,2.20527,2214.2,2211.9,0.1934463]
[1625336317055,2.20527,2214.2,2211.9,16.5291453]
[1625336317152,2.20527,2212.5,2212.4,2.20527]
[1625336317252,1.20527,2212.5,2212.4,2.20527]
[1625336317406,7e-05,2212.5,2212.4,2.20527]
[1625336317552,16.3459,2214.5,2212.4,4.84327]
[1625336317701,15.2459,2214.5,2212.4,4.84327]
[1625336317953,15.2459,2214.5,2212.5,16.4309]
[1625336318255,15.2459,2214.5,2212.9,4.9005]
[1625336318453,15.2459,2214.5,2213.0,16.525076]
[1625336319155,2.20527,2213.9,2213.8,2.20527]
[1625336319256,2.20527,2213.9,2213.8,4.68367]
[1625336321176,4.41054,2213.9,2213.8,4.68367]
[1625336321476,4.41054,2213.9,2213.8,21.197536]
[1625336322229,2.20527,2213.9,2213.8,21.197536]
[1625336327197,2.20527,2213.9,2213.8,22.197536]
[1625336327797,2.20527,2213.9,2213.8,19.992266]
[1625336327948,2.20527,2213.9,2213.8,2.4784]
[1625336328050,2.20527,2213.9,2212.9,4.9005]
[1625336328299,2.20527,2213.9,2213.0,1.0]
[1625336328648,2.20527,2213.9,2213.1,16.437076]
[1625336328749,2.20527,2213.9,2213.2,1.0]
[1625336328997,2.20527,2213.9,2213.3,16.483078]
[1625336329102,2.20527,2213.9,2213.4,1.0]
[1625336329198,2.20527,2213.9,2213.6,2.20527]
[1625336329299,2.20527,2213.9,2213.7,1.0]
[1625336331016,2.20527,2213.9,2213.8,16.42822]
[1625336331115,2.20527,2213.9,2213.8,17.42822]
[1625336331217,2.20527,2213.9,2213.8,22.22529]
[1625336331368,2.20527,2213.9,2213.8,5.79707]
[1625336333778,2.20527,2213.9,2213.8,3.20527]
[1625336335082,2.20527,2213.9,2213.8,1.0]
[1625336335634,2.20527,2213.9,2213.3,2.20527]
[1625336335733,2.20527,2213.9,2213.4,1.0]
[1625336336235,2.20527,2213.9,2213.5,16.451779]
[1625336336535,2.20527,2213.9,2213.6,1.0]
[1625336336786,2.20527,2213.9,2213.7,16.460777]
[1625336337036,2.20527,2213.9,2213.8,1.0]
[1625336337136,2.20527,2213.9,2213.3,4.85687]
[1625336337237,2.20527,2213.9,2213.7,2.20527]
[1625336337791,2.20527,2213.9,2213.8,16.499776]
[1625336339242,4.41054,2213.9,2213.8,16.499776]
[1625336339447,4.41054,2213.9,2213.8,17.499776]
[1625336339546,4.41054,2213.9,2213.8,16.499776]
[1625336339751,4.41054,2213.9,2213.8,17.499776]
[1625336341206,4.41054,2213.9,2213.8,16.499776]
[1625336341352,4.41054,2213.9,2213.8,17.499776]
[1625336342454,4.41054,2213.9,2213.8,16.499776]
[1625336342756,4.41054,2213.9,2213.8,17.499776]
[1625336344515,4.41054,2213.9,2213.8,1.0]
[1625336345565,2.20527,2213.9,2213.8,1.0]
[1625336346677,2.20527,2213.9,2213.8,3.6315]
[1625336346977,2.20527,2213.9,2213.8,19.914373]
[1625336347278,2.20527,2213.9,2213.8,22.119643]
[1625336347478,2.20527,2214.3,2213.8,22.119643]
[1625336349333,2.20527,2214.3,2214.2,2.20527]
[1625336350635,15.617,2215.7,2214.2,3.20527]
[1625336350884,3.34381837,2216.5,2214.3,0.19479464]
[1625336350986,3.34381837,2216.5,2214.7,1.15]
[1625336351085,3.34381837,2216.5,2214.8,1.0]
[1625336351383,2.20527,2215.9,2215.8,2.20527]
[1625336351483,2.20527,2215.9,2215.8,5.40767]
[1625336351636,2.20527,2215.9,2215.8,6.40767]
[1625336352938,14.3593,2216.6,2215.8,6.40767]
[1625336353186,9.45148801,2217.6,2215.8,6.40767]
[1625336353437,2.20527,2216.4,2216.3,2.20527]
[1625336355441,4.41054,2216.4,2216.3,2.20527]
[1625336357798,7.94054,2216.4,2214.7,1.15]
[1625336358499,7.94054,2216.4,2214.8,16.305519]
[1625336358898,7.94054,2216.4,2214.9,1.0]
[1625336359347,2.20527,2215.2,2215.0,2.20527]
[1625336359450,4.51607,2215.2,2215.1,1.0]
[1625336362915,4.51607,2215.2,2215.0,2.20527]
[1625336363516,4.51607,2215.2,2214.2,2.20527]
[1625336364026,4.51607,2215.2,2214.3,1.0]
[1625336365436,2.20527,2214.4,2214.3,1.0]
[1625336365532,4.51367,2214.4,2214.3,1.0]
[1625336366292,2.3084,2214.4,2214.3,1.0]
[1625336367790,2.20527,2215.0,2214.3,1.0]
[1625336367891,2.20527,2215.0,2214.3,4.183]
[1625336367994,2.20527,2215.0,2214.3,20.697888]
[1625336369441,2.20527,2215.0,2214.9,4.41054]
[1625336369592,2.20527,2215.0,2214.9,5.41054]
[1625336369790,2.20527,2215.0,2214.9,21.689698]
[1625336371593,2.20527,2215.0,2214.9,5.41054]
[1625336372143,2.20527,2215.0,2214.9,21.824795]
[1625336374300,2.20527,2215.0,2214.9,4.41054]
[1625336381716,2.20527,2215.0,2214.9,5.41054]
[1625336382316,2.20527,2215.0,2214.9,8.11044]
[1625336382516,2.20527,2215.0,2214.9,24.402736]
[1625336382629,3.35598625,2216.4,2214.9,24.402736]
[1625336382818,3.35629972,2216.6,2214.9,24.402736]
[1625336383172,3.3572446,2216.7,2214.9,24.402736]
[1625336383676,3.35762236,2216.8,2214.9,24.402736]
[1625336383768,2.20527,2215.7,2215.6,2.20527]
[1625336385776,4.41054,2215.7,2215.6,2.20527]
[1625336386580,4.41054,2215.7,2215.6,3.20527]
[1625336387786,2.20527,2216.1,2215.6,3.20527]
[1625336387887,2.20527,2216.1,2215.6,6.83077]
[1625336387984,2.20527,2216.3,2215.6,6.83077]
[1625336388195,2.20527,2216.3,2215.6,5.83077]
[1625336388288,2.20527,2216.3,2215.7,16.476118]
[1625336388590,2.20527,2216.3,2215.6,2.20527]
[1625336388738,5.60437,2216.3,2215.6,2.20527]
[1625336389840,7.02744,2215.7,2215.4,2.20527]
[1625336390590,7.02744,2215.7,2214.7,1.0]
[1625336391443,7.02744,2215.7,2214.8,16.517955]
[1625336391544,7.02744,2215.7,2214.9,1.0]
[1625336391744,2.20527,2215.1,2215.0,2.20527]
[1625336391893,5.09557,2215.1,2215.0,2.20527]
[1625336393795,7.30084,2215.1,2215.0,2.20527]
[1625336394199,7.30084,2215.1,2214.5,1.0]
[1625336394298,7.30084,2215.1,2213.7,14.9985]
[1625336395200,7.30084,2215.1,2213.8,1.0]
[1625336395752,2.20527,2214.4,2214.3,2.20527]
[1625336395904,5.90437,2214.4,2213.8,1.0]
[1625336397757,5.90437,2214.4,2214.0,2.20527]
[1625336397861,5.90437,2214.4,2214.0,3.20527]
[1625336399773,2.20527,2214.1,2214.0,3.20527]
[1625336399982,2.20527,2214.1,2214.0,2.20527]
[1625336400185,2.20527,2214.1,2214.0,3.20527]
[1625336400383,14.7507,2215.0,2214.0,3.20527]
[1625336400690,2.6169,2215.7,2214.0,3.20527]
[1625336400795,3.34899069,2216.0,2214.0,3.20527]
[1625336400899,5.0,2215.8,2214.0,3.20527]
[1625336401002,8.3106,2215.8,2214.0,3.20527]
[1625336401098,8.3106,2215.8,2214.1,16.326986]
[1625336401400,8.3106,2215.8,2214.0,2.20527]
[1625336401700,1.33801804,2215.7,2214.0,2.20527]
[1625336401800,2.20527,2214.1,2214.0,2.20527]
[1625336402602,2.20527,2214.1,2214.0,3.20527]
[1625336403402,2.20527,2214.1,2214.0,2.20527]
[1625336403904,2.20527,2214.1,2214.0,3.20527]
[1625336404006,2.20527,2214.1,2214.0,2.20527]
[1625336404556,2.20527,2214.1,2214.0,3.20527]
[1625336405863,3.1847,2215.3,2214.0,3.20527]
[1625336405964,2.5758595,2215.7,2214.0,3.20527]
[1625336407014,5.89311316,2215.8,2214.0,3.20527]
[1625336407466,2.58268184,2215.7,2214.0,3.20527]
[1625336407966,2.20527,2214.5,2214.4,2.20527]
[1625336409918,4.41054,2214.5,2214.0,3.20527]
[1625336410719,7.20044,2214.5,2214.0,2.20527]
[1625336411373,7.20044,2214.5,2213.6,1.0]
[1625336411471,12.20044,2214.5,2213.6,1.0]
[1625336411674,12.20044,2214.5,2213.0,2.65925666]
[1625336411872,2.20527,2213.1,2212.5,2.20527]
[1625336411972,7.68504,2213.1,2212.5,2.20527]
[1625336412121,7.68504,2213.1,2212.5,3.20527]
[1625336413886,2.20527,2212.6,2212.5,3.20527]
[1625336414642,5.78177,2212.6,2212.5,3.20527]
[1625336414842,5.78177,2212.6,2212.3,2.20527]
[1625336414940,5.78177,2212.6,2211.9,1.0]
[1625336415244,5.78177,2212.6,2211.8,2.65965471]
[1625336415443,5.78177,2212.6,2211.5,2.65991592]
[1625336415794,5.78177,2212.6,2210.9,2.0]
[1625336415895,2.20527,2211.6,2211.5,2.20527]
[1625336415995,2.20527,2211.6,2211.5,3.20527]
[1625336416198,2.20527,2211.6,2211.5,2.20527]
[1625336416400,2.20527,2211.6,2211.3,2.20527]
[1625336417953,2.20527,2211.4,2211.3,2.20527]
[1625336418051,2.20527,2211.4,2211.3,3.20527]
[1625336418503,1.0,2213.6,2211.3,6.73297]
[1625336418610,2.56597,2213.8,2211.3,23.068365]
[1625336418706,7.41492499,2214.6,2211.3,23.068365]
[1625336418707,2.56773042,2214.1,2211.3,23.068365]
[1625336418865,7.56773042,2214.1,2211.4,0.19361977]
[1625336419158,5.0,2214.1,2211.4,0.19361977]
[1625336419257,5.0,2214.1,2211.5,16.305215]
[1625336419360,5.0,2214.1,2211.6,1.0]
[1625336419459,19.5669,2213.3,2211.6,1.0]
[1625336419756,14.5669,2213.3,2211.6,1.0]
[1625336419957,2.20527,2212.3,2212.2,2.20527]
[1625336420156,2.20527,2212.3,2212.2,3.20527]
[1625336420457,2.20527,2212.3,2212.2,2.20527]
[1625336420660,2.20527,2212.3,2212.2,3.20527]
[1625336421959,4.41054,2212.3,2212.2,3.20527]
[1625336423812,14.5669,2213.3,2212.2,6.07927]
[1625336423914,2.20527,2212.8,2212.6,2.20527]
[1625336424062,2.20527,2212.8,2212.7,3.4633]
[1625336424164,2.20527,2212.8,2212.7,2.4633]
[1625336426420,2.20527,2212.8,2212.7,3.4633]
[1625336427420,2.20527,2212.8,2212.7,2.4633]
[1625336427770,2.20527,2212.8,2212.7,3.4633]
[1625336427918,14.496,2214.3,2212.7,3.4633]
[1625336428022,2.20527,2213.2,2212.7,5.66857]
[1625336428474,2.20527,2213.2,2212.8,16.521617]
[1625336428571,2.20527,2213.2,2212.8,17.521617]
[1625336428773,2.20527,2213.2,2212.8,1.0]
[1625336430021,2.20527,2213.2,2213.0,2.20527]
[1625336431876,2.20527,2213.2,2213.1,1.0]
[1625336431976,4.41054,2213.2,2213.1,1.0]
[1625336432379,4.41054,2213.2,2213.0,2.20527]
[1625336432631,4.41054,2213.2,2213.0,3.20527]
[1625336436453,4.41054,2213.2,2213.0,2.20527]
[1625336437605,4.41054,2213.2,2213.0,5.69177]
[1625336439507,4.41054,2213.2,2213.1,1.0]
[1625336441062,4.41054,2213.2,2213.0,5.69177]
[1625336441261,4.41054,2213.2,2213.0,3.4865]
[1625336441364,4.41054,2213.2,2212.7,2.20527]
[1625336442118,2.20527,2212.8,2212.7,2.20527]
[1625336443671,2.20527,2212.8,2212.7,3.20527]
[1625336444729,2.20527,2212.8,2212.7,2.20527]
[1625336447648,2.20527,2212.8,2212.7,3.20527]
[1625336449015,2.20527,2212.8,2212.7,2.20527]
[1625336450224,2.20527,2212.8,2212.0,1.0]
[1625336452278,4.41054,2212.8,2212.6,2.20527]
[1625336457387,7.40684,2212.8,2212.6,2.20527]
[1625336460605,7.40684,2212.8,2212.6,3.20527]
[1625336460908,4.41054,2212.8,2212.6,3.20527]
[1625336461306,4.41054,2212.8,2212.6,7e-05]
[1625336461456,1.0,2212.7,2211.3,2.8736]
[1625336461606,4.2723,2212.7,2210.9,6.759]
[1625336461755,4.2723,2212.7,2211.0,0.19414375]
[1625336462159,4.2723,2212.7,2211.1,16.422062]
[1625336462310,2.20527,2211.4,2211.3,2.20527]
[1625336462708,3.20527,2211.4,2211.3,2.20527]
[1625336463212,3.20527,2211.4,2211.1,2.20527]
[1625336463662,2.20527,2211.4,2211.1,2.20527]
[1625336464361,3.20527,2211.4,2211.1,4.41054]
[1625336464912,2.20527,2211.4,2211.1,4.41054]
[1625336465062,3.20527,2211.4,2211.1,4.41054]
[1625336466266,2.20527,2211.4,2211.1,4.41054]
[1625336466466,3.20527,2211.4,2211.1,4.41054]
[1625336467219,2.20527,2211.4,2211.1,4.41054]
[1625336467423,3.20527,2211.4,2211.1,4.41054]
[1625336468121,2.20527,2211.4,2211.1,4.41054]
[1625336468773,3.20527,2211.4,2211.1,4.41054]
[1625336468876,6.38297,2211.4,2211.1,4.41054]
[1625336472328,2.20527,2211.2,2211.1,4.41054]
[1625336472428,3.20527,2211.2,2211.1,4.41054]
[1625336474431,3.20527,2211.2,2210.9,2.0]
[1625336474629,3.20527,2211.2,2210.0,0.05]
[1625336474939,5.0,2211.1,2210.0,0.05]
[1625336475041,1.0,2211.0,2210.0,0.05]
[1625336476411,4.41054,2210.1,2210.0,0.05]
[1625336476508,13.43404,2210.1,2210.0,0.05]
[1625336476708,13.43404,2210.1,2208.5,6.85200312]
[1625336476709,13.43404,2210.1,2208.5,5.0]
[1625336477060,8.43404,2210.1,2208.5,5.0]
[1625336477361,5.0,2210.0,2208.5,5.0]
[1625336477459,1.0,2209.9,2208.5,5.0]
[1625336478418,2.20527,2208.9,2208.8,2.20527]
[1625336478615,2.20527,2208.9,2208.8,4.93217]
[1625336480369,4.41054,2208.9,2208.8,4.93217]
[1625336483229,1.0,2209.8,2208.8,21.26785]
[1625336483331,5.0,2211.4,2208.8,21.26785]
[1625336483434,1.0,2211.2,2208.8,21.26785]
[1625336484432,2.20527,2210.1,2210.0,2.20527]
[1625336484531,3.20527,2210.1,2210.0,2.20527]
[1625336484783,2.20527,2210.1,2210.0,2.20527]
[1625336489793,2.20527,2210.1,2210.0,4.49297]
[1625336495376,2.20527,2210.1,2210.0,2.2877]
[1625336495478,2.20527,2210.1,2209.8,2.20527]
[1625336496230,2.20527,2210.5,2209.8,2.20527]
[1625336496429,2.20527,2210.5,2210.4,4.41054]
[1625336496628,2.20527,2210.5,2210.4,7.84734]
[1625336498031,3.20527,2210.5,2210.4,7.84734]
[1625336498131,2.20527,2210.5,2210.4,7.84734]
[1625336498334,3.20527,2210.5,2210.4,7.84734]
[1625336498636,3.20527,2210.5,2210.4,5.64207]
[1625336498935,2.20527,2210.5,2210.4,5.64207]
[1625336499487,3.20527,2210.5,2210.4,5.64207]
[1625336500287,2.20527,2210.5,2210.4,5.64207]
[1625336500387,3.20527,2210.5,2210.4,5.64207]
[1625336500941,3.20527,2210.5,2210.4,2.20527]
[1625336501641,3.20527,2210.5,2208.8,2.7269]
[1625336501741,3.20527,2210.5,2208.7,14.6679]
[1625336502492,2.20527,2209.7,2209.6,2.20527]
[1625336504248,2.20527,2209.9,2209.6,2.20527]
[1625336504547,2.20527,2209.9,2209.7,2.20527]
[1625336506278,2.20527,2210.3,2209.7,2.20527]
[1625336506528,2.20527,2210.3,2210.1,2.20527]
[1625336508588,2.20527,2210.3,2210.1,4.41054]
[1625336509892,15.3217,2211.3,2210.1,4.41054]
[1625336510041,1.0,2211.2,2210.1,4.41054]
[1625336510602,2.20527,2210.5,2210.4,2.20527]
[1625336510700,3.20527,2210.5,2210.4,2.20527]
[1625336511250,2.20527,2210.5,2210.4,2.20527]
[1625336512560,4.41054,2210.5,2210.4,2.20527]
[1625336513067,5.41054,2210.5,2210.4,2.20527]
[1625336513316,4.41054,2210.5,2210.4,2.20527]
[1625336514226,5.41054,2210.5,2210.4,2.20527]
[1625336514726,4.41054,2210.5,2210.1,2.20527]
[1625336514826,1.0,2210.4,2210.1,2.20527]
[1625336516535,4.41054,2210.5,2210.1,2.20527]